bitfinex/quotes_SOLUSD_20250108
["timestamp","ask_amount","ask_price","bid_price","bid_amount"]
[1736308435203,1.07284248,197.94,197.82,24.53883443]
[1736308437810,1.07284248,197.94,197.83,24.53883443]
[1736308438413,1.07284248,197.94,197.83,25.29678804]
[1736308438705,0.12549,197.92,197.83,0.75795361]
[1736308438905,20.12549,197.9,197.75,6.2324]
[1736308439108,0.12549,197.88,197.75,6.2324]
[1736308439330,0.12549,197.84,197.69,0.75829735]
[1736308439613,0.12549,197.82,197.69,23.776884]
[1736308439789,20.12549,197.8,197.68,8.51028124]
[1736308439988,0.12549,197.78,197.68,7.7518]
[1736308440311,0.94804079,197.79,197.64,0.75843263]
[1736308440312,0.12549,197.76,197.64,0.75843263]
[1736308440817,1.07372287,197.76,197.63,6.2324]
[1736308441008,0.12549,197.76,197.63,6.99114005]
[1736308441186,0.12549,197.76,197.65,23.776884]
[1736308441384,0.12549,197.76,197.66,0.75853646]
[1736308444519,1.07371408,197.76,197.63,6.2324]
[1736308444704,20.0,197.72,197.58,6.5581]
[1736308444903,1.07410455,197.71,197.58,6.5581]
[1736308445098,0.12549,197.71,197.65,24.53883443]
[1736308445297,20.0,197.78,197.63,24.53883443]
[1736308445603,1.07391051,197.77,197.64,0.75873641]
[1736308445798,1.07391051,197.77,197.64,25.29757084]
[1736308446899,3.72,197.76,197.64,25.29757084]
[1736308447094,0.12549,197.74,197.64,25.29757084]
[1736308447302,0.12549,197.74,197.64,40.73709637]
[1736308447640,0.12549,197.75,197.64,40.73709637]
[1736308447800,1.0737802,197.75,197.64,40.73709637]
[1736308448109,0.12549,197.75,197.64,40.73709637]
[1736308448303,1.07373375,197.75,197.64,40.73709637]
[1736308448525,0.12549,197.75,197.64,40.73709637]
[1736308452501,0.12549,197.75,197.66,39.97835996]
[1736308452701,0.12549,197.75,197.67,0.75857739]
[1736308453224,0.12549,197.75,197.66,39.97835996]
[1736308453425,1.07371179,197.75,197.64,39.97835996]
[1736308455136,1.07371179,197.75,197.62,39.97835996]
[1736308455307,1.07371179,197.75,197.6,39.97835996]
[1736308456632,0.15490585,197.81,197.7,39.97835996]
[1736308456806,0.94806816,197.81,197.7,39.97835996]
[1736308457724,0.12549,197.8,197.72,39.97835996]
[1736308458533,20.12549,197.8,197.72,39.97835996]
[1736308458732,0.12549,197.8,197.74,39.97835996]
[1736308459511,0.12549,197.8,197.75,0.75827768]
[1736308459937,0.12549,197.8,197.72,39.97835996]
[1736308460630,20.12549,197.8,197.72,39.97835996]
[1736308460838,20.12549,197.78,197.7,39.97835996]
[1736308461129,0.12549,197.76,197.68,41.48525996]
[1736308461434,0.12549,197.77,197.68,41.48525996]
[1736308461735,1.07369633,197.77,197.68,41.48525996]
[1736308462303,1.07369633,197.77,197.66,39.97835996]
[1736308465438,0.12549,197.77,197.68,39.97835996]
[1736308465645,0.94823971,197.76,197.66,39.97835996]
[1736308466935,19.75640493,197.83,197.68,23.776884]
[1736308467164,0.94792947,197.82,197.74,39.97835996]
[1736308467371,0.12549,197.81,197.74,39.97835996]
[1736308467961,19.75640493,197.83,197.74,39.97835996]
[1736308468465,1.07347247,197.82,197.74,39.97835996]
[1736308468675,0.12549,197.82,197.74,39.97835996]
[1736308469476,0.12549,197.82,197.74,24.57980253]
[1736308469765,20.70432924,197.83,197.65,0.75838524]
[1736308469766,0.12549,197.79,197.65,0.75838524]
[1736308469997,0.12549,197.77,197.67,24.57980253]
[1736308470175,1.07373547,197.77,197.67,24.57980253]
[1736308470765,1.07373547,197.77,197.65,24.57980253]
[1736308471177,1.07373547,197.77,197.67,24.57980253]
[1736308471676,1.07373547,197.77,197.65,24.57980253]
[1736308472377,0.94841243,197.81,197.69,24.57980253]
[1736308472757,0.12549,197.8,197.71,24.57980253]
[1736308473346,20.12549,197.8,197.71,24.57980253]
[1736308473761,0.12549,197.78,197.71,24.57980253]
[1736308474569,0.12549,197.79,197.71,24.57980253]
[1736308475050,0.12549,197.79,197.69,24.57980253]
[1736308475379,0.12549,197.77,197.65,24.57980253]
[1736308476053,0.12549,197.77,197.64,7.40476418]
[1736308476054,0.12549,197.77,197.63,24.57980253]
[1736308476261,0.12549,197.73,197.61,24.57980253]
[1736308476460,0.12549,197.71,197.61,24.57980253]
[1736308476673,1.07403166,197.71,197.61,24.57980253]
[1736308476873,1.07403166,197.71,197.59,24.57980253]
[1736308477176,1.07403166,197.71,197.57,26.13550253]
[1736308478061,1.07403166,197.71,197.59,24.57980253]
[1736308481786,1.07403166,197.71,197.59,25.33870752]
[1736308482575,1.07403166,197.71,197.61,24.57980253]
[1736308483182,1.07403166,197.71,197.59,25.33870752]
[1736308483391,20.12549,197.69,197.57,24.57980253]
[1736308483589,0.94866548,197.68,197.57,25.33867802]
[1736308483892,0.94866548,197.68,197.59,24.57980253]
[1736308484183,0.12549,197.68,197.59,24.57980253]
[1736308484757,0.12549,197.68,197.57,0.75894591]
[1736308484758,0.12549,197.66,197.56,24.57980253]
[1736308485872,0.12549,197.65,197.56,24.57980253]
[1736308486180,0.12549,197.63,197.54,24.57980253]
[1736308486366,0.12549,197.61,197.54,24.57980253]
[1736308486571,1.074442,197.61,197.51,24.57980253]
[1736308487480,0.12549,197.61,197.51,25.33899658]
[1736308487682,3.56,197.62,197.51,25.33899658]
[1736308487683,0.94899256,197.65,197.57,1.5712]
[1736308487882,7.78274186,197.71,197.64,24.57980253]
[1736308488089,7.78274186,197.71,197.66,24.57980253]
[1736308488462,0.12549,197.7,197.66,24.57980253]
[1736308488881,0.12549,197.72,197.66,24.57980253]
[1736308489686,0.12549,197.76,197.66,24.57980253]
[1736308489884,0.12549,197.76,197.68,24.57980253]
[1736308490183,0.551,197.8,197.7,24.57980253]
[1736308490384,0.12549,197.79,197.7,24.57980253]
[1736308490962,0.12549,197.79,197.72,24.57980253]
[1736308491889,0.12549,197.81,197.72,24.57980253]
[1736308492065,39.51280986,197.83,197.8,24.57980253]
[1736308492266,39.51280986,197.83,197.82,24.57980253]
[1736308492774,39.51280986,197.83,197.8,24.57980253]
[1736308492972,39.51280986,197.83,197.77,24.57980253]
[1736308493165,0.12549,197.82,197.76,24.57980253]
[1736308493575,0.12549,197.82,197.73,32.21350253]
[1736308494090,0.12549,197.82,197.74,24.57980253]
[1736308494289,1.07342795,197.82,197.72,24.57980253]
[1736308494594,0.12549,197.79,197.7,24.57980253]
[1736308494786,0.12549,197.77,197.68,31.93925289]
[1736308495004,0.12549,197.77,197.69,24.57980253]
[1736308495189,0.12549,197.77,197.7,24.57980253]
[1736308496081,0.12549,197.77,197.69,24.57980253]
[1736308496289,0.12549,197.77,197.68,0.75835036]
[1736308496477,0.12549,197.77,197.67,1.5196]
[1736308496677,0.12549,197.77,197.67,26.09940253]
[1736308497172,0.12549,197.77,197.68,24.57980253]
[1736308497874,0.12549,197.77,197.67,26.85794598]
[1736308498502,0.12549,197.77,197.67,26.09940253]
[1736308499291,0.12549,197.78,197.72,24.57980253]
[1736308499496,0.12549,197.78,197.74,24.57980253]
[1736308499697,0.12549,197.78,197.73,0.75838518]
[1736308499895,0.12549,197.81,197.72,24.57980253]
[1736308500608,0.12549,197.82,197.72,24.57980253]
[1736308500774,0.12549,197.8,197.72,24.57980253]
[1736308502275,0.12549,197.8,197.74,24.57980253]
[1736308503110,19.75640493,197.83,197.79,24.57980253]
[1736308503411,19.75640493,197.83,197.77,24.57980253]
[1736308503593,0.12549,197.82,197.75,32.70050253]
[1736308504217,0.12549,197.82,197.77,24.57980253]
[1736308504505,0.12549,197.79,197.66,24.57980253]
[1736308504688,1.07375007,197.79,197.66,24.57980253]
[1736308505214,1.07375007,197.79,197.67,0.75864057]
[1736308505382,0.12549,197.79,197.69,24.57980253]
[1736308506217,0.12549,197.79,197.7,0.75845756]
[1736308506714,0.12549,197.79,197.69,24.57980253]
[1736308508608,0.12549,197.79,197.7,0.75845904]
[1736308509179,19.75640493,197.83,197.73,24.57980253]
[1736308509384,3.5,197.82,197.75,24.57980253]
[1736308509808,0.12549,197.81,197.74,0.7583539]
[1736308509991,3.5,197.82,197.75,24.57980253]
[1736308510315,0.12549,197.81,197.76,0.7582002]
[1736308510505,0.12549,197.81,197.77,24.57980253]
[1736308510890,19.75640493,197.83,197.79,24.57980253]
[1736308511111,19.75640493,197.83,197.81,24.57980253]
[1736308511410,19.75640493,197.83,197.76,24.57980253]
[1736308511411,0.12549,197.82,197.76,24.57980253]
[1736308511707,0.12549,197.82,197.75,0.75805037]
[1736308512112,0.12549,197.82,197.76,24.57980253]
[1736308512295,0.12549,197.82,197.77,0.75817298]
[1736308513293,0.12549,197.82,197.76,25.33800817]
[1736308513494,0.12549,197.82,197.73,25.3380157]
[1736308514108,0.12549,197.82,197.75,24.57980253]
[1736308514300,0.12549,197.82,197.74,24.57980253]
[1736308514614,0.12549,197.82,197.75,24.57980253]
[1736308515512,0.12549,197.82,197.76,25.3380532]
[1736308515701,0.12549,197.82,197.75,48.35668653]
[1736308516505,0.12549,197.82,197.74,24.57980253]
[1736308516816,0.12549,197.79,197.7,24.57980253]
[1736308516995,0.12549,197.79,197.67,8.36554488]
[1736308516996,0.12549,197.77,197.68,24.57980253]
[1736308517203,0.12549,197.77,197.67,8.36554488]
[1736308517702,0.12549,197.77,197.67,32.94534741]
[1736308517907,0.12549,197.77,197.63,0.75855792]
[1736308517908,1.0736874,197.77,197.63,0.75855792]
[1736308518221,20.12549,197.75,197.59,25.33847684]
[1736308518522,0.12549,197.73,197.58,0.75882937]
[1736308518686,0.12549,197.73,197.57,8.2108]
[1736308519001,0.12549,197.73,197.57,32.79060253]
[1736308519002,20.12549,197.73,197.57,32.79060253]
[1736308519201,0.12549,197.71,197.57,8.2108]
[1736308519816,20.0,197.68,197.53,24.57980253]
[1736308519999,4.57430309,197.67,197.52,0.75895603]
[1736308520400,0.12549,197.63,197.49,0.75909661]
[1736308520702,1.07453319,197.63,197.47,7.39493455]
[1736308521198,1.07453319,197.63,197.46,26.91421824]
[1736308521199,21.07453319,197.63,197.46,26.91421824]
[1736308522212,21.07453319,197.63,197.46,26.15490253]
[1736308522422,0.12549,197.58,197.45,24.57980253]
[1736308522718,0.12549,197.56,197.42,24.57980253]
[1736308522904,1.07496752,197.56,197.4,24.57980253]
[1736308523418,1.07496752,197.56,197.43,24.57980253]
[1736308523797,3.5,197.55,197.45,24.57980253]
[1736308524012,3.5,197.55,197.45,25.33917538]
[1736308524424,0.12549,197.54,197.45,25.33917538]
[1736308524794,0.12549,197.54,197.47,24.57980253]
[1736308525108,1.07467005,197.54,197.4,24.57980253]
[1736308525297,1.07467005,197.54,197.4,25.3393583]
[1736308525497,1.07467005,197.54,197.41,24.57980253]
[1736308525700,1.07467005,197.54,197.43,24.57980253]
[1736308526515,0.12549,197.54,197.44,25.33924726]
[1736308527306,0.12549,197.54,197.45,23.776884]
[1736308527506,0.12549,197.54,197.46,25.33915974]
[1736308527815,0.12549,197.54,197.44,24.57980253]
[1736308528426,0.12549,197.54,197.45,0.75943578]
[1736308529101,0.12549,197.52,197.45,0.75943578]
[1736308529327,0.12549,197.52,197.46,24.57980253]
[1736308529514,0.12549,197.52,197.48,24.57980253]
[1736308529693,0.12549,197.52,197.49,0.75926799]
[1736308529890,0.12549,197.52,197.48,0.75926799]
[1736308532708,0.94908495,197.63,197.49,48.35668653]
[1736308533018,0.12549,197.59,197.5,0.75916793]
[1736308533598,1.07444733,197.59,197.46,6.4827]
[1736308533817,1.07444733,197.59,197.44,25.33920394]
[1736308534004,1.07444733,197.59,197.46,0.75940141]
[1736308534310,1.07444733,197.59,197.43,24.57980253]
[1736308534506,0.12549,197.57,197.42,7.24218185]
[1736308534707,0.12549,197.58,197.42,31.82198438]
[1736308535309,0.12549,197.58,197.42,7.24218185]
[1736308535520,0.12549,197.58,197.44,24.57980253]
[1736308535717,0.12549,197.58,197.47,24.57980253]
[1736308535918,0.12549,197.58,197.46,24.57980253]
[1736308536115,0.12549,197.58,197.46,25.33913174]
[1736308536621,4.3091498,197.6,197.49,24.57980253]
[1736308536825,0.12549,197.59,197.48,0.75923]
[1736308537125,1.07461287,197.59,197.48,0.75923]
[1736308537326,1.07461287,197.59,197.48,25.33903253]
[1736308537512,1.07461287,197.59,197.49,24.57980253]
[1736308537513,0.12549,197.59,197.49,24.57980253]
[1736308537710,0.12549,197.59,197.5,0.7592029]
[1736308537902,0.94905981,197.62,197.5,0.7592029]
[1736308538101,3.36,197.61,197.5,0.7592029]
[1736308538318,0.12549,197.59,197.49,24.57980253]
[1736308538627,0.12549,197.57,197.48,25.33896786]
[1736308538922,0.12549,197.57,197.49,48.35668653]
[1736308539113,0.12549,197.57,197.49,23.776884]
[1736308539320,0.12549,197.57,197.49,24.53612339]
[1736308540716,0.94903045,197.62,197.49,49.11592592]
[1736308540916,0.551,197.66,197.56,24.57980253]
[1736308541224,3.911,197.66,197.55,24.57980253]
[1736308541430,0.12549,197.65,197.55,24.57980253]
[1736308541624,0.12549,197.65,197.56,0.75899923]
[1736308541929,0.12549,197.65,197.57,24.57980253]
[1736308542226,0.12549,197.65,197.56,48.35668653]
[1736308542408,0.12549,197.65,197.57,0.75890662]
[1736308543128,3.36,197.69,197.6,24.57980253]
[1736308543334,0.12549,197.7,197.61,0.75875472]
[1736308543500,0.12549,197.68,197.61,0.75875472]
[1736308544102,0.12549,197.68,197.61,25.33855725]
[1736308544941,0.94844079,197.82,197.73,44.0]
[1736308545108,8.67917314,197.87,197.77,24.57980253]
[1736308545314,7.73109237,197.87,197.82,24.57980253]
[1736308546230,3.911,197.98,197.82,24.57980253]
[1736308546428,0.9473903,197.97,197.82,24.57980253]
[1736308547009,19.88189493,197.83,197.82,24.57980253]
[1736308547223,0.12549,197.82,197.8,24.57980253]
[1736308547432,0.12549,197.82,197.79,0.75802837]
[1736308547623,0.12549,197.82,197.72,0.75812828]
[1736308547819,0.12549,197.82,197.72,25.33793081]
[1736308548020,0.12549,197.82,197.75,24.57980253]
[1736308548227,0.12549,197.82,197.76,0.75819077]
[1736308548622,0.12549,197.82,197.74,0.75821868]
[1736308548936,0.12549,197.82,197.72,0.75829508]
[1736308549564,0.12549,197.82,197.74,39.95018504]
[1736308549729,0.12549,197.82,197.75,0.75822298]
[1736308549914,0.12549,197.82,197.75,40.70840802]
[1736308550829,0.12549,197.87,197.75,40.70840802]
[1736308551706,20.947754,197.92,197.79,39.95018504]
[1736308551707,0.947754,197.92,197.79,39.95018504]
[1736308552035,0.94753612,197.92,197.8,40.70821393]
[1736308552237,0.12549,197.91,197.8,40.70821393]
[1736308552536,0.12549,197.91,197.8,0.75802889]
[1736308553032,0.12549,197.89,197.77,40.70821767]
[1736308553437,0.12549,197.92,197.77,0.75803263]
[1736308554634,0.12549,197.92,197.77,40.70821767]
[1736308554833,0.12549,197.92,197.71,4.99990572]
[1736308554834,0.12549,197.88,197.74,39.95018504]
[1736308555017,1.07327334,197.88,197.75,0.75822667]
[1736308555224,1.07327334,197.88,197.73,40.70847623]
[1736308555936,1.07327334,197.88,197.74,39.95018504]
[1736308556131,1.07327334,197.88,197.75,0.75821338]
[1736308556337,1.07327334,197.88,197.75,40.70839842]
[1736308557419,1.07327334,197.88,197.75,0.75821338]
[1736308557621,1.07327334,197.88,197.75,40.70839842]
[1736308558338,1.07327334,197.88,197.8,39.95018504]
[1736308558539,0.94777642,197.92,197.8,39.95018504]
[1736308558714,0.12549,197.96,197.8,39.95018504]
[1736308559039,0.12549,197.94,197.8,39.95018504]
[1736308559256,0.12549,197.94,197.79,39.95018504]
[1736308559542,0.12549,197.94,197.8,0.75806835]
[1736308559746,0.12549,197.94,197.79,39.95018504]
[1736308559914,0.12549,197.94,197.8,0.75802784]
[1736308560118,0.12549,197.94,197.8,39.95018504]
[1736308560927,0.12549,197.94,197.85,39.95018504]
[1736308561135,0.551,197.98,197.86,40.70802179]
[1736308561447,0.12549,197.97,197.86,40.70802179]
[1736308561927,0.12549,197.97,197.86,0.75783675]
[1736308562340,0.12549,197.95,197.83,39.95018504]
[1736308562650,0.12549,197.95,197.84,60.70811052]
[1736308563724,0.12549,197.95,197.85,23.776884]
[1736308563933,0.94736382,198.06,197.91,39.95018504]
[1736308564132,3.38,198.05,197.92,40.70780732]
[1736308564450,0.12549,198.03,197.92,40.70780732]
[1736308565045,3.38,198.05,197.93,63.72706904]
[1736308565252,0.12549,198.04,197.94,0.75754036]
[1736308565627,0.12549,198.04,197.95,39.95018504]
[1736308565853,0.12549,198.04,197.95,23.776884]
[1736308566848,0.9468698,198.13,198.0,39.95018504]
[1736308567051,0.94657318,198.18,198.03,39.95018504]
[1736308567228,0.94657318,198.18,198.04,39.95018504]
[1736308567629,0.12549,198.17,198.04,39.95018504]
[1736308567923,0.12549,198.15,198.03,0.7571137]
[1736308568355,0.12549,198.13,197.97,40.70734352]
[1736308568538,0.12549,198.13,197.98,39.95018504]
[1736308568744,0.12549,198.13,198.0,23.776884]
[1736308568948,0.12549,198.13,198.02,63.72706904]
[1736308569162,0.94644474,198.15,198.03,0.75715579]
[1736308569773,0.94640492,198.17,198.04,63.72706904]
[1736308570082,4.32640492,198.17,198.05,0.75706697]
[1736308570228,3.38,198.17,198.06,63.72706904]
[1736308570947,0.12549,198.16,198.06,23.776884]
[1736308571353,1.07180606,198.16,198.05,20.0]
[1736308571748,1.07180606,198.16,198.03,0.75717548]
[1736308572064,4.45180606,198.16,198.03,0.75717548]
[1736308572271,4.45180606,198.16,197.99,24.50445981]
[1736308572481,4.45180606,198.16,198.0,0.75727001]
[1736308572788,4.45180606,198.16,198.01,20.0]
[1736308572940,3.38,198.15,198.0,25.26172982]
[1736308573267,1.072042,198.14,198.01,23.776884]
[1736308573464,1.072042,198.14,198.02,0.75722583]
[1736308574074,1.072042,198.14,198.0,23.776884]
[1736308575387,0.12549,198.12,198.0,23.776884]
[1736308575684,0.12549,198.1,198.0,23.776884]
[1736308576768,0.12549,198.12,198.0,23.776884]
[1736308576963,1.07209375,198.12,198.0,23.776884]
[1736308577754,1.07209375,198.12,197.99,0.75730712]
[1736308578083,0.12549,198.08,197.94,24.50445981]
[1736308578368,21.07226973,198.08,197.96,24.50445981]
[1736308578578,21.07226973,198.08,197.97,0.75741275]
[1736308578579,20.12549,198.08,197.97,0.75741275]
[1736308579287,20.12549,198.08,197.97,25.26187256]
[1736308579788,0.94676594,198.1,197.97,25.26187256]
[1736308580286,0.12549,198.09,197.97,25.26187256]
[1736308580465,0.12549,198.07,197.97,25.26187256]
[1736308581276,0.12549,198.08,197.97,0.75741275]
[1736308581669,23.50549,198.08,197.97,0.75741275]
[1736308582287,3.50549,198.08,197.97,0.75741275]
[1736308582472,7.73109237,198.38,198.16,8.0944]
[1736308582672,3.38,198.27,198.17,0.75655611]
[1736308582872,4.25111981,198.27,198.07,24.50445981]
[1736308583071,2.75111981,198.27,198.09,44.08893481]
[1736308583391,0.12549,198.26,198.07,24.50445981]
[1736308583591,0.87111981,198.25,198.09,24.50445981]
[1736308583789,0.12549,198.24,198.09,24.50445981]
[1736308584293,23.902374,198.24,198.09,24.50445981]
[1736308584469,5.0,198.26,198.09,24.50445981]
[1736308585104,5.12549,198.26,198.09,24.50445981]
[1736308585387,20.0,198.23,198.09,24.50445981]
[1736308585564,1.88,198.27,198.13,24.50445981]
[1736308585768,1.88,198.27,198.11,24.50445981]
[1736308585978,0.12549,198.26,198.11,24.50445981]
[1736308586480,23.902374,198.26,198.11,24.50445981]
[1736308586682,0.12549,198.22,198.11,24.50445981]
[1736308586880,23.776884,198.26,198.12,0.75684871]
[1736308587283,45.5,198.25,198.15,24.50445981]
[1736308587486,19.75640493,198.28,198.17,24.50445981]
[1736308587487,65.25640493,198.28,198.17,24.50445981]
[1736308587677,19.75640493,198.28,198.19,24.50445981]
[1736308587876,19.75640493,198.28,198.23,24.50445981]
[1736308587877,3.56,198.27,198.23,24.50445981]
[1736308588083,19.75640493,198.28,198.25,24.50445981]
[1736308588395,3.56,198.27,198.25,24.50445981]
[1736308588591,19.75640493,198.28,198.25,24.50445981]
[1736308588794,19.75640493,198.28,198.23,24.50445981]
[1736308589096,3.68549,198.27,198.25,24.50445981]
[1736308589290,3.68549,198.26,198.25,24.50445981]
[1736308590983,0.12549,198.26,198.25,24.50445981]
[1736308591182,3.68549,198.26,198.25,24.50445981]
[1736308591367,0.12549,198.26,198.25,24.50445981]
[1736308591569,3.68549,198.26,198.25,24.50445981]
[1736308592688,0.12549,198.26,198.25,24.50445981]
[1736308592890,3.68549,198.26,198.25,24.50445981]
[1736308593289,3.56,198.26,198.25,24.50445981]
[1736308594007,3.56,198.26,198.24,24.50445981]
[1736308594314,20.0,198.33,198.18,15.67408015]
[1736308594315,5.0,198.6,198.39,6.4958]
[1736308594513,3.56,198.64,198.53,24.50445981]
[1736308594731,3.56,198.63,198.51,24.50445981]
[1736308594880,3.78,198.62,198.51,24.50445981]
[1736308595074,35.0,198.69,198.51,24.50445981]
[1736308595278,13.78,198.68,198.48,39.63958572]
[1736308595492,5.0,198.66,198.48,39.63958572]
[1736308595697,3.78,198.65,198.48,39.63958572]
[1736308595899,40.0,198.67,198.48,39.63958572]
[1736308596089,3.78,198.66,198.48,39.63958572]
[1736308596288,20.0,198.64,198.5,39.63958572]
[1736308596491,0.12549,198.63,198.5,39.63958572]
[1736308596700,3.78,198.62,198.53,39.63958572]
[1736308596885,3.78,198.61,198.53,39.63958572]
[1736308597084,3.78,198.6,198.53,39.63958572]
[1736308597280,51.6736,198.7,198.53,39.63958572]
[1736308597505,27.682374,198.69,198.53,39.63958572]
[1736308598297,27.682374,198.69,198.49,39.63958572]
[1736308598298,43.90549,198.69,198.49,39.63958572]
[1736308598489,43.90549,198.69,198.47,39.63958572]
[1736308598490,0.12549,198.61,198.47,39.63958572]
[1736308598685,0.12549,198.59,198.47,39.63958572]
[1736308599602,23.902374,198.59,198.44,39.63958572]
[1736308599784,0.12549,198.55,198.42,7.9899841]
[1736308599984,0.12549,198.55,198.42,48.38521625]
[1736308600306,0.12549,198.55,198.42,8.74563053]
[1736308600789,0.12549,198.55,198.42,7.9899841]
[1736308601195,23.902374,198.55,198.42,7.9899841]
[1736308601499,0.12549,198.51,198.42,7.9899841]
[1736308601697,0.12549,198.49,198.42,7.9899841]
[1736308602400,0.12549,198.51,198.42,7.9899841]
[1736308602584,0.12549,198.49,198.42,7.9899841]
[1736308603301,0.12549,198.47,198.42,7.9899841]
[1736308603480,0.12549,198.45,198.42,7.9899841]
[1736308604199,23.776884,198.57,198.42,7.9899841]
[1736308604403,23.776884,198.55,198.42,7.9899841]
[1736308604792,0.12549,198.54,198.42,7.9899841]
[1736308605493,0.12549,198.54,198.4,28.6289279]
[1736308605910,0.12549,198.54,198.4,27.87316489]
[1736308606205,20.0,198.52,198.4,39.63958572]
[1736308609399,20.0,198.52,198.36,40.39538612]
[1736308609595,20.0,198.48,198.36,45.67008366]
[1736308609796,3.78,198.47,198.36,45.67008366]
[1736308610094,3.78,198.47,198.38,39.63958572]
[1736308611618,0.12549,198.52,198.38,39.63958572]
[1736308611797,20.0,198.53,198.38,39.63958572]
[1736308612003,3.78,198.51,198.38,39.63958572]
[1736308612198,40.0,198.58,198.4,39.63958572]
[1736308612398,3.78,198.57,198.4,39.63958572]
[1736308612594,3.78,198.56,198.44,39.63958572]
[1736308612917,0.12549,198.54,198.44,39.63958572]
[1736308613112,3.78,198.53,198.44,39.63958572]
[1736308613286,0.12549,198.52,198.44,39.63958572]
[1736308613897,3.78,198.51,198.46,39.63958572]
[1736308614214,0.12549,198.49,198.46,39.63958572]
[1736308615316,0.12549,198.49,198.42,24.40603586]
[1736308615510,0.12549,198.49,198.44,24.40603586]
[1736308615695,0.12549,198.49,198.45,0.75558507]
[1736308615896,0.12549,198.49,198.44,24.40603586]
[1736308616093,3.78,198.49,198.44,24.40603586]
[1736308616607,3.78,198.49,198.42,24.40603586]
[1736308616814,3.78,198.49,198.43,48.93849656]
[1736308617017,3.78,198.49,198.43,24.5324607]
[1736308619217,3.78,198.49,198.43,0.7555767]
[1736308619416,3.78,198.49,198.39,24.40603586]
[1736308619628,3.54,198.48,198.4,25.16171635]
[1736308619809,3.54,198.47,198.41,23.776884]
[1736308620213,0.12549,198.46,198.41,23.776884]
[1736308620409,3.54,198.47,198.43,48.18291986]
[1736308620613,11.5225,198.62,198.44,0.7556122]
[1736308620904,11.5225,198.62,198.37,18.63279394]
[1736308620905,5.0,198.59,198.38,0.75561486]
[1736308621112,20.0,198.57,198.39,24.40603586]
[1736308621311,0.12549,198.52,198.4,0.75569623]
[1736308621511,3.54,198.51,198.4,0.75569623]
[1736308621721,3.54,198.51,198.41,48.18291986]
[1736308622028,3.54,198.51,198.42,0.75562067]
[1736308622223,0.12549,198.5,198.42,25.16165653]
[1736308623808,0.12549,198.5,198.43,24.40603586]
[1736308624104,6.5225,198.62,198.46,24.40603586]
[1736308624312,46.1414,198.68,198.49,24.40603586]
[1736308624512,3.54,198.67,198.49,25.16142197]
[1736308624719,20.12549,198.65,198.49,25.16142197]
[1736308624907,23.902374,198.65,198.49,25.16142197]
[1736308625407,0.12549,198.62,198.49,25.16142197]
[1736308626021,0.12549,198.62,198.49,0.75538611]
[1736308626435,0.12549,198.62,198.49,25.16142197]
[1736308626816,0.12549,198.58,198.49,0.75538611]
[1736308627021,0.12549,198.56,198.46,6.375]
[1736308627523,0.12549,198.54,198.46,6.375]
[1736308627711,0.12549,198.52,198.46,6.375]
[1736308627910,0.12549,198.52,198.46,30.78103586]
[1736308628332,0.12549,198.52,198.46,6.375]
[1736308628722,0.12549,198.52,198.45,1.617]
[1736308629343,0.12549,198.52,198.41,5.047]
[1736308629724,0.12549,198.52,198.4,6.1177]
[1736308629924,0.12549,198.48,198.39,1.5857]
[1736308630636,23.54,198.53,198.39,1.5857]
[1736308630823,0.12549,198.48,198.39,1.5857]
[1736308632716,5.0,198.58,198.4,0.75597994]
[1736308632916,3.54,198.57,198.4,0.75597994]
[1736308633116,23.776884,198.56,198.39,2.34145501]
[1736308633326,8.54,198.57,198.39,2.34145501]
[1736308633327,0.12549,198.52,198.39,2.34145501]
[1736308634035,0.12549,198.5,198.39,2.34145501]
[1736308634942,0.12549,198.5,198.39,1.5857]
[1736308635525,35.0,198.6,198.4,48.93872062]
[1736308635839,20.0,198.55,198.4,48.93872062]
[1736308636137,23.902374,198.58,198.4,48.93872062]
[1736308636333,38.06449053,198.62,198.42,24.40603586]
[1736308636543,3.54,198.57,198.43,0.75561809]
[1736308636844,0.12549,198.56,198.44,24.40603586]
[1736308638541,0.12549,198.56,198.43,0.75561809]
[1736308639232,46.0526,198.62,198.43,0.75561809]
[1736308639233,6.0526,198.62,198.43,0.75561809]
[1736308639443,3.54,198.61,198.43,0.75561809]
[1736308639631,0.12549,198.56,198.43,0.75561809]
[1736308640856,0.12549,198.54,198.44,24.40603586]